fUSD/lending_fUSD_20260614
["ID","MTS","AMOUNT","RATE_DAILY","PERIOD"]
[424979008,1781367067000,-8279.50260927,0.0002739,2]
[424979052,1781367067000,-150.0,0.00027397,2]
[424979007,1781367067000,-151.0,0.0002739,2]
[424979042,1781367067000,-150.0,0.00027397,2]
[424979043,1781367067000,-150.0,0.00027397,2]
[424979044,1781367067000,-150.0,0.00027397,2]
[424979041,1781367067000,-150.0,0.00027397,2]
[424979038,1781367067000,-150.0,0.00027397,2]
[424979047,1781367067000,-150.0,0.00027397,2]
[424979045,1781367067000,-150.0,0.00027397,2]
[424979048,1781367067000,-150.0,0.00027397,2]
[424979060,1781367067000,-150.0,0.00027397,2]
[424979050,1781367067000,-150.0,0.00027397,2]
[424979049,1781367067000,-150.0,0.00027397,2]
[424979051,1781367067000,-150.0,0.00027397,2]
[424979053,1781367067000,-150.0,0.00027397,2]
[424979056,1781367067000,-150.0,0.00027397,2]
[424979055,1781367067000,-150.0,0.00027397,2]
[424979057,1781367067000,-150.0,0.00027397,2]
[424979054,1781367067000,-150.0,0.00027397,2]
[424979059,1781367067000,-150.0,0.00027397,2]
[424979058,1781367067000,-150.0,0.00027397,2]
[424979061,1781367067000,-150.0,0.00027397,2]
[424979064,1781367067000,-150.0,0.00027397,2]
[424979063,1781367067000,-150.0,0.00027397,2]
[424979062,1781367067000,-150.0,0.00027397,2]
[424979065,1781367067000,-150.0,0.00027397,2]
[424979013,1781367067000,-150.0,0.00027397,2]
[424979046,1781367067000,-150.0,0.00027397,2]
[424979040,1781367067000,-150.0,0.00027397,2]
[424979066,1781367067000,-150.0,0.00027397,2]
[424979037,1781367067000,-150.0,0.00027397,2]
[424979039,1781367067000,-150.0,0.00027397,2]
[424979010,1781367067000,-1151.99,0.00027397,2]
[424979014,1781367067000,-150.0,0.00027397,2]
[424979016,1781367067000,-150.0,0.00027397,2]
[424979019,1781367067000,-150.0,0.00027397,2]
[424979020,1781367067000,-150.0,0.00027397,2]
[424979021,1781367067000,-150.0,0.00027397,2]
[424979015,1781367067000,-150.0,0.00027397,2]
[424979022,1781367067000,-150.0,0.00027397,2]
[424979018,1781367067000,-150.0,0.00027397,2]
[424979023,1781367067000,-150.0,0.00027397,2]
[424979017,1781367067000,-150.0,0.00027397,2]
[424979024,1781367067000,-150.0,0.00027397,2]
[424979009,1781367067000,-205.04995436,0.00027396,2]
[424979025,1781367067000,-150.0,0.00027397,2]
[424979035,1781367067000,-150.0,0.00027397,2]
[424979027,1781367067000,-150.0,0.00027397,2]
[424979036,1781367067000,-150.0,0.00027397,2]
[424979026,1781367067000,-150.0,0.00027397,2]
[424979028,1781367067000,-150.0,0.00027397,2]
[424979031,1781367067000,-150.0,0.00027397,2]
[424979033,1781367067000,-150.0,0.00027397,2]
[424979029,1781367067000,-150.0,0.00027397,2]
[424979034,1781367067000,-150.0,0.00027397,2]
[424979030,1781367067000,-150.0,0.00027397,2]
[424979032,1781367067000,-150.0,0.00027397,2]
[424979102,1781367068000,-172.52044669,0.00027397,2]
[424979100,1781367068000,-500.0,0.00027397,2]
[424979099,1781367068000,-500.0,0.00027397,2]
[424979101,1781367068000,-500.0,0.00027397,2]
[424979094,1781367068000,-500.0,0.00027397,2]
[424979103,1781367068000,-2278.0,0.00027397,2]
[424979098,1781367068000,-500.0,0.00027397,2]
[424979097,1781367068000,-500.0,0.00027397,2]
[424979096,1781367068000,-500.0,0.00027397,2]
[424979107,1781367068000,-1000.0,0.00027397,20]
[424979104,1781367068000,-2631.58163766,0.00027397,2]
[424979111,1781367068000,-151.0,0.00027397,2]
[424979110,1781367068000,-151.0,0.00027397,2]
[424979109,1781367068000,-151.0,0.00027397,2]
[424979113,1781367068000,-151.0,0.00027397,2]
[424979108,1781367068000,-151.0,0.00027397,2]
[424979118,1781367068000,-151.0,0.00027397,2]
[424979117,1781367068000,-151.0,0.00027397,2]
[424979116,1781367068000,-151.0,0.00027397,2]
[424979115,1781367068000,-151.0,0.00027397,2]
[424979114,1781367068000,-151.0,0.00027397,2]
[424979128,1781367068000,-1669.82061,0.00027397,2]
[424979119,1781367068000,-151.0,0.00027397,2]
[424979127,1781367068000,-1669.82061,0.00027397,2]
[424979105,1781367068000,-1500.0,0.00027397,2]
[424979112,1781367068000,-151.0,0.00027397,2]
[424979095,1781367068000,-500.0,0.00027397,2]
[424979081,1781367068000,-150.0,0.00027397,2]
[424979092,1781367068000,-500.0,0.00027397,2]
[424979120,1781367068000,-151.000007,0.00027397,2]
[424979069,1781367068000,-150.0,0.00027397,2]
[424979067,1781367068000,-150.0,0.00027397,2]
[424979070,1781367068000,-150.0,0.00027397,2]
[424979071,1781367068000,-150.0,0.00027397,2]
[424979068,1781367068000,-150.0,0.00027397,2]
[424979079,1781367068000,-150.0,0.00027397,2]
[424979073,1781367068000,-150.0,0.00027397,2]
[424979076,1781367068000,-150.0,0.00027397,2]
[424979074,1781367068000,-150.0,0.00027397,2]
[424979080,1781367068000,-150.0,0.00027397,2]
[424979082,1781367068000,-150.0,0.00027397,2]
[424979078,1781367068000,-150.0,0.00027397,2]
[424979072,1781367068000,-150.0,0.00027397,2]
[424979075,1781367068000,-150.0,0.00027397,2]
[424979077,1781367068000,-150.0,0.00027397,2]
[424979083,1781367068000,-150.0,0.00027397,2]
[424979086,1781367068000,-156.410313,0.00027397,2]
[424979089,1781367068000,-500.0,0.00027397,2]
[424979084,1781367068000,-150.0,0.00027397,2]
[424979088,1781367068000,-500.0,0.00027397,2]
[424979087,1781367068000,-500.0,0.00027397,2]
[424979085,1781367068000,-150.0,0.00027397,2]
[424979091,1781367068000,-500.0,0.00027397,2]
[424979093,1781367068000,-500.0,0.00027397,2]
[424979090,1781367068000,-500.0,0.00027397,2]
[424979121,1781367068000,-1669.82061,0.00027397,2]
[424979106,1781367068000,-1472.44,0.00027397,2]
[424979122,1781367068000,-1669.82061,0.00027397,2]
[424979154,1781367068000,-151.0,0.00027397,2]
[424979161,1781367068000,-693.500694,0.00027397,2]
[424979155,1781367068000,-220.649933,0.00027397,2]
[424979157,1781367068000,-693.500694,0.00027397,2]
[424979158,1781367068000,-693.500694,0.00027397,2]
[424979159,1781367068000,-693.500694,0.00027397,2]
[424979162,1781367068000,-693.500694,0.00027397,2]
[424979164,1781367068000,-693.500694,0.00027397,2]
[424979163,1781367068000,-693.500694,0.00027397,2]
[424979160,1781367068000,-693.500694,0.00027397,2]
[424979166,1781367068000,-693.500694,0.00027397,2]
[424979172,1781367068000,-2078.793022,0.00027397,2]
[424979173,1781367068000,-2078.793022,0.00027397,2]
[424979167,1781367068000,-693.500694,0.00027397,2]
[424979175,1781367068000,-2078.793022,0.00027397,2]
[424979169,1781367068000,-693.500694,0.00027397,2]
[424979174,1781367068000,-2078.793022,0.00027397,2]
[424979165,1781367068000,-693.500694,0.00027397,2]
[424979168,1781367068000,-693.500694,0.00027397,2]
[424979171,1781367068000,-693.500694,0.00027397,2]
[424979178,1781367068000,-2078.793022,0.00027397,2]
[424979176,1781367068000,-2078.793022,0.00027397,2]
[424979179,1781367068000,-2078.793022,0.00027397,2]
[424979180,1781367068000,-2078.793022,0.00027397,2]
[424979123,1781367068000,-1669.82061,0.00027397,2]
[424979156,1781367068000,-693.500694,0.00027397,2]
[424979153,1781367068000,-151.0,0.00027397,2]
[424979170,1781367068000,-693.500694,0.00027397,2]
[424979146,1781367068000,-151.0,0.00027397,2]
[424979149,1781367068000,-151.0,0.00027397,2]
[424979124,1781367068000,-1669.82061,0.00027397,2]
[424979125,1781367068000,-1669.82061,0.00027397,2]
[424979126,1781367068000,-1669.82061,0.00027397,2]
[424979131,1781367068000,-1669.82061,0.00027397,2]
[424979130,1781367068000,-1669.82061,0.00027397,2]
[424979132,1781367068000,-1669.82061,0.00027397,2]
[424979136,1781367068000,-1669.82061,0.00027397,2]
[424979137,1781367068000,-300.0,0.00027397,2]
[424979139,1781367068000,-250.215924,0.00027397,2]
[424979134,1781367068000,-1669.82061,0.00027397,2]
[424979140,1781367068000,-529.41,0.00027397,2]
[424979133,1781367068000,-1669.82061,0.00027397,2]
[424979129,1781367068000,-1669.82061,0.00027397,2]
[424979138,1781367068000,-151.0,0.00027397,2]
[424979135,1781367068000,-1669.82061,0.00027397,2]
[424979147,1781367068000,-151.0,0.00027397,2]
[424979148,1781367068000,-151.0,0.00027397,2]
[424979145,1781367068000,-151.0,0.00027397,2]
[424979177,1781367068000,-2078.793022,0.00027397,2]
[424979142,1781367068000,-151.0,0.00027397,2]
[424979144,1781367068000,-151.0,0.00027397,2]
[424979143,1781367068000,-151.0,0.00027397,2]
[424979150,1781367068000,-151.0,0.00027397,2]
[424979151,1781367068000,-151.0,0.00027397,2]
[424979141,1781367068000,-151.0,0.00027397,2]
[424979152,1781367068000,-151.0,0.00027397,2]
[424979207,1781367069000,-707.197237,0.00027397,2]
[424979209,1781367069000,-707.197237,0.00027397,2]
[424979208,1781367069000,-707.197237,0.00027397,2]
[424979201,1781367069000,-707.197237,0.00027397,2]
[424979200,1781367069000,-707.197237,0.00027397,2]
[424979211,1781367069000,-707.197237,0.00027397,2]
[424979214,1781367069000,-158.08926811,0.00027397,7]
[424979199,1781367069000,-707.197237,0.00027397,2]
[424979212,1781367069000,-1000.0,0.00027397,30]
[424979213,1781367069000,-197.87747114,0.00027397,7]
[424979219,1781367069000,-2006.0,0.000274,2]
[424979210,1781367069000,-707.197237,0.00027397,2]
[424979221,1781367069000,-4591.3,0.000274,2]
[424979220,1781367069000,-2006.0,0.000274,2]
[424979216,1781367069000,-171.87092843,0.00027397,7]
[424979217,1781367069000,-10055.58894355,0.000274,2]
[424979218,1781367069000,-908.7,0.000274,7]
[424979205,1781367069000,-707.197237,0.00027397,2]
[424979222,1781367069000,-4591.3,0.000274,2]
[424979215,1781367069000,-1000.0,0.00027397,30]
[424979204,1781367069000,-707.197237,0.00027397,2]
[424979188,1781367069000,-3089.36,0.00027397,2]
[424979203,1781367069000,-707.197237,0.00027397,2]
[424979232,1781367069000,-788.41,0.0002755,30]
[424979182,1781367069000,-2078.793022,0.00027397,2]
[424979185,1781367069000,-2078.793022,0.00027397,2]
[424979184,1781367069000,-2078.793022,0.00027397,2]
[424979186,1781367069000,-2078.793022,0.00027397,2]
[424979181,1781367069000,-2078.793022,0.00027397,2]
[424979187,1781367069000,-2078.793022,0.00027397,2]
[424979183,1781367069000,-2078.793022,0.00027397,2]
[424979193,1781367069000,-151.0,0.00027397,2]
[424979194,1781367069000,-151.0,0.00027397,2]
[424979189,1781367069000,-17771.07,0.00027397,10]
[424979190,1781367069000,-14809.22,0.00027397,10]
[424979192,1781367069000,-151.0,0.00027397,2]
[424979191,1781367069000,-151.0,0.00027397,2]
[424979195,1781367069000,-707.197237,0.00027397,2]
[424979196,1781367069000,-235.84002,0.00027397,2]
[424979198,1781367069000,-707.197237,0.00027397,2]
[424979197,1781367069000,-707.197237,0.00027397,2]
[424979202,1781367069000,-707.197237,0.00027397,2]
[424979206,1781367069000,-707.197237,0.00027397,2]
[424979225,1781367069000,-4591.3,0.000274,2]
[424979226,1781367069000,-613.01,0.00027433,7]
[424979223,1781367069000,-4591.3,0.000274,2]
[424979252,1781367069000,-280.03725111,0.00027629,2]
[424979251,1781367069000,-1368.22,0.00027627,2]
[424979255,1781367069000,-595.71,0.00027641,2]
[424979254,1781367069000,-599.96,0.00027641,2]
[424979256,1781367069000,-504.0,0.00027662,11]
[424979253,1781367069000,-272.93901,0.00027629,2]
[424979257,1781367069000,-599.96,0.00027672,7]
[424979260,1781367069000,-908.7,0.000277,7]
[424979262,1781367069000,-595.71,0.00027702,30]
[424979261,1781367069000,-599.96,0.00027702,30]
[424979266,1781367069000,-765.82,0.00027711,7]
[424979267,1781367069000,-2274.57,0.00027711,7]
[424979259,1781367069000,-1643.09,0.00027687,7]
[424979265,1781367069000,-788.41,0.00027711,7]
[424979264,1781367069000,-8782.61,0.00027711,7]
[424979263,1781367069000,-2261.7,0.00027711,7]
[424979268,1781367069000,-8644.82,0.00027711,7]
[424979228,1781367069000,-500.0,0.000275,7]
[424979269,1781367069000,-599.96,0.00027733,2]
[424979250,1781367069000,-595.71,0.00027611,30]
[424979247,1781367069000,-1002.22,0.000276,7]
[424979258,1781367069000,-595.71,0.00027672,7]
[424979249,1781367069000,-599.96,0.00027611,30]
[424979227,1781367069000,-204.99217296,0.000275,2]
[424979246,1781367069000,-775.76,0.00027593,2]
[424979229,1781367069000,-599.96,0.0002755,2]
[424979224,1781367069000,-4591.3,0.000274,2]
[424979231,1781367069000,-8782.61,0.0002755,30]
[424979234,1781367069000,-8644.82,0.0002755,30]
[424979233,1781367069000,-765.82,0.0002755,30]
[424979235,1781367069000,-2274.57,0.0002755,30]
[424979244,1781367069000,-599.96,0.0002758,7]
[424979243,1781367069000,-310.0,0.00027575,2]
[424979230,1781367069000,-2261.7,0.0002755,30]
[424979241,1781367069000,-250.0,0.0002755,2]
[424979240,1781367069000,-250.0,0.0002755,2]
[424979237,1781367069000,-250.0,0.0002755,2]
[424979236,1781367069000,-595.71,0.0002755,2]
[424979238,1781367069000,-250.0,0.0002755,2]
[424979242,1781367069000,-250.0,0.0002755,2]
[424979239,1781367069000,-250.0,0.0002755,2]
[424979245,1781367069000,-595.71,0.0002758,7]
[424979248,1781367069000,-354.64,0.000276,7]
[424979298,1781367070000,-595.71,0.00027916,2]
[424979303,1781367070000,-599.96,0.00027946,7]
[424979302,1781367070000,-178.36809812,0.00027938,2]
[424979295,1781367070000,-599.96,0.00027885,30]
[424979300,1781367070000,-516.8211754,0.00027918,2]
[424979297,1781367070000,-599.96,0.00027916,2]
[424979296,1781367070000,-595.71,0.00027885,30]
[424979301,1781367070000,-310.0,0.00027918,2]
[424979299,1781367070000,-409.1788246,0.00027918,2]
[424979309,1781367070000,-1506.0,0.00028,2]
[424979306,1781367070000,-599.96,0.00027977,30]
[424979308,1781367070000,-2684.2027579,0.00027994,2]
[424979307,1781367070000,-595.71,0.00027977,30]
[424979312,1781367070000,-1899.78131286,0.00028,2]
[424979310,1781367070000,-615.0,0.00028,120]
[424979311,1781367070000,-600.0,0.00028,2]
[424979305,1781367070000,-150.0,0.00027973,2]
[424979313,1781367070000,-1314.35957576,0.00028,60]
[424979315,1781367070000,-325.0,0.00028,2]
[424979294,1781367070000,-572.35,0.00027882,2]
[424979304,1781367070000,-595.71,0.00027946,7]
[424979289,1781367070000,-2274.57,0.00027872,2]
[424979274,1781367070000,-599.96,0.00027794,30]
[424979290,1781367070000,-8644.82,0.00027872,2]
[424979320,1781367070000,-2261.7,0.00028033,30]
[424979271,1781367070000,-599.96,0.00027763,7]
[424979270,1781367070000,-595.71,0.00027733,2]
[424979272,1781367070000,-595.71,0.00027763,7]
[424979273,1781367070000,-775.76,0.00027789,2]
[424979275,1781367070000,-595.71,0.00027794,30]
[424979276,1781367070000,-599.96,0.00027824,2]
[424979277,1781367070000,-595.71,0.00027824,2]
[424979278,1781367070000,-250.0,0.0002784,2]
[424979285,1781367070000,-2261.7,0.00027872,2]
[424979281,1781367070000,-250.0,0.0002784,2]
[424979282,1781367070000,-250.0,0.0002784,2]
[424979279,1781367070000,-250.0,0.0002784,2]
[424979280,1781367070000,-250.0,0.0002784,2]
[424979284,1781367070000,-595.71,0.00027855,7]
[424979283,1781367070000,-599.96,0.00027855,7]
[424979286,1781367070000,-8782.61,0.00027872,2]
[424979288,1781367070000,-765.82,0.00027872,2]
[424979287,1781367070000,-788.41,0.00027872,2]
[424979291,1781367070000,-371.0,0.00027881,10]
[424979292,1781367070000,-2000.0,0.00027882,2]
[424979293,1781367070000,-2000.0,0.00027882,2]
[424979319,1781367070000,-595.71,0.00028007,2]
[424979331,1781367070000,-595.71,0.00028099,2]
[424979317,1781367070000,-1151.99,0.00028006,2]
[424979346,1781367070000,-2261.7,0.00028194,7]
[424979347,1781367070000,-8782.61,0.00028194,7]
[424979343,1781367070000,-6076.0,0.00028194,2]
[424979350,1781367070000,-2274.57,0.00028194,7]
[424979349,1781367070000,-765.82,0.00028194,7]
[424979351,1781367070000,-8644.82,0.00028194,7]
[424979348,1781367070000,-788.41,0.00028194,7]
[424979352,1781367070000,-2020.9,0.00028267,2]
[424979354,1781367070000,-1151.99,0.00028311,2]
[424979362,1781367070000,-250.0,0.0002842,2]
[424979353,1781367070000,-908.7,0.000283,7]
[424979356,1781367070000,-150.0,0.00028348,2]
[424979355,1781367070000,-5091.7,0.00028318,7]
[424979357,1781367070000,-150.0,0.00028348,2]
[424979358,1781367070000,-150.0,0.00028348,2]
[424979359,1781367070000,-383.0,0.00028348,2]
[424979361,1781367070000,-213.73642824,0.00028359,2]
[424979360,1781367070000,-1228.0,0.00028348,2]
[424979363,1781367070000,-250.0,0.0002842,2]
[424979365,1781367070000,-504.0,0.00028468,11]
[424979316,1781367070000,-908.7,0.00028,7]
[424979345,1781367070000,-3644.0,0.00028194,2]
[424979344,1781367070000,-1146.828,0.00028194,2]
[424979364,1781367070000,-250.0,0.0002842,2]
[424979337,1781367070000,-250.0,0.0002813,2]
[424979340,1781367070000,-595.85,0.0002813,7]
[424979314,1781367070000,-160.0,0.00028,2]
[424979323,1781367070000,-765.82,0.00028033,30]
[424979322,1781367070000,-788.41,0.00028033,30]
[424979318,1781367070000,-599.96,0.00028007,2]
[424979325,1781367070000,-8644.82,0.00028033,30]
[424979333,1781367070000,-300.0,0.00028119,10]
[424979324,1781367070000,-2274.57,0.00028033,30]
[424979329,1781367070000,-595.71,0.00028068,30]
[424979326,1781367070000,-599.96,0.00028038,7]
[424979321,1781367070000,-8782.61,0.00028033,30]
[424979330,1781367070000,-599.96,0.00028099,2]
[424979338,1781367070000,-250.0,0.0002813,2]
[424979327,1781367070000,-595.71,0.00028038,7]
[424979336,1781367070000,-250.0,0.0002813,2]
[424979342,1781367070000,-272.93901,0.00028177,2]
[424979339,1781367070000,-600.15,0.0002813,7]
[424979335,1781367070000,-250.0,0.0002813,2]
[424979334,1781367070000,-245541.2008941,0.0002812,2]
[424979332,1781367070000,-300.0,0.00028119,10]
[424979328,1781367070000,-599.96,0.00028068,30]
[424979341,1781367070000,-290.3986294,0.00028177,2]
[424979392,1781367071000,-319.36284679,0.00028643,7]
[424979388,1781367071000,-231.31250362,0.00028643,7]
[424979386,1781367071000,-347.07433262,0.00028643,7]
[424979391,1781367071000,-395.75494228,0.00028643,7]
[424979393,1781367071000,-305.3191966,0.00028643,7]
[424979394,1781367071000,-376.41211606,0.00028643,7]
[424979399,1781367071000,-333.97560466,0.00028643,7]
[424979397,1781367071000,-302.03215639,0.00028643,2]
[424979398,1781367071000,-223.40674961,0.00028643,7]
[424979400,1781367071000,-339.04549531,0.00028643,7]
[424979396,1781367071000,-316.17853622,0.00028643,7]
[424979402,1781367071000,-167.23785325,0.00028643,7]
[424979395,1781367071000,-446.57655652,0.00028643,7]
[424979403,1781367071000,-322.30106238,0.00028643,7]
[424979404,1781367071000,-344.0997206,0.00028643,7]
[424979406,1781367071000,-406.3704837,0.00028643,7]
[424979389,1781367071000,-429.75034662,0.00028643,7]
[424979407,1781367071000,-405.71774743,0.00028643,7]
[424979401,1781367071000,-499.46021548,0.00028643,7]
[424979390,1781367071000,-152.97742019,0.00028643,7]
[424979383,1781367071000,-1488.56,0.00028603,2]
[424979384,1781367071000,-1151.99,0.00028615,2]
[424979412,1781367071000,-247.02892797,0.00028643,5]
[424979370,1781367071000,-3000.0,0.00028587,2]
[424979371,1781367071000,-572.54,0.00028587,2]
[424979373,1781367071000,-2000.0,0.00028587,2]
[424979372,1781367071000,-2000.0,0.00028587,2]
[424979367,1781367071000,-168.44,0.00028493,2]
[424979368,1781367071000,-921.73,0.000285,7]
[424979369,1781367071000,-500.0,0.00028568,60]
[424979366,1781367071000,-150.0,0.00028493,2]
[424979374,1781367071000,-572.34,0.00028587,2]
[424979375,1781367071000,-2000.0,0.00028587,2]
[424979377,1781367071000,-2000.0,0.00028587,2]
[424979376,1781367071000,-1373.52,0.00028587,2]
[424979378,1781367071000,-400.0,0.00028587,2]
[424979379,1781367071000,-908.7,0.000286,7]
[424979381,1781367071000,-1405.63,0.00028602,2]
[424979382,1781367071000,-1000.0,0.00028602,2]
[424979380,1781367071000,-1905.14,0.00028602,2]
[424979385,1781367071000,-177.0,0.00028625,3]
[424979387,1781367071000,-161.97141085,0.00028643,2]
[424979411,1781367071000,-175.98527621,0.00028643,2]
[424979416,1781367071000,-360.89576114,0.00028643,7]
[424979410,1781367071000,-393.05305324,0.00028643,5]
[424979434,1781367071000,-353.45063523,0.00028648,7]
[424979436,1781367071000,-329.913262,0.00028648,7]
[424979437,1781367071000,-430.3180881,0.00028648,7]
[424979440,1781367071000,-339.5910296,0.00028648,7]
[424979439,1781367071000,-320.80674277,0.00028648,7]
[424979442,1781367071000,-267.852,0.00028648,20]
[424979443,1781367071000,-314.44624249,0.00028654,7]
[424979441,1781367071000,-6086.077,0.00028648,20]
[424979435,1781367071000,-241.18550969,0.00028648,7]
[424979438,1781367071000,-345.96921158,0.00028648,7]
[424979444,1781367071000,-341.54976675,0.00028654,7]
[424979447,1781367071000,-431.08968131,0.00028654,7]
[424979408,1781367071000,-551.72182509,0.00028643,7]
[424979449,1781367071000,-250.0,0.0002871,2]
[424979448,1781367071000,-151.0,0.00028674,7]
[424979451,1781367071000,-152.0,0.00028716,3]
[424979452,1781367071000,-644.79446245,0.00028722,2]
[424979450,1781367071000,-250.0,0.0002871,2]
[424979445,1781367071000,-307.44499159,0.00028654,7]
[424979428,1781367071000,-343.74185686,0.00028644,7]
[424979446,1781367071000,-337.76775376,0.00028654,7]
[424979425,1781367071000,-339.29292272,0.00028644,7]
[424979433,1781367071000,-336.7330713,0.00028648,7]
[424979409,1781367071000,-155.76910114,0.00028643,2]
[424979405,1781367071000,-347.46582308,0.00028643,7]
[424979423,1781367071000,-310.59352665,0.00028644,7]
[424979414,1781367071000,-306.04114511,0.00028643,7]
[424979415,1781367071000,-202.04752314,0.00028643,7]
[424979419,1781367071000,-322.46829614,0.00028643,7]
[424979417,1781367071000,-324.35456478,0.00028643,7]
[424979420,1781367071000,-229.42347823,0.00028643,7]
[424979413,1781367071000,-310.60947215,0.00028643,7]
[424979421,1781367071000,-240.52475653,0.00028644,7]
[424979422,1781367071000,-315.90761235,0.00028644,7]
[424979424,1781367071000,-339.42097554,0.00028644,7]
[424979427,1781367071000,-373.94141745,0.00028644,7]
[424979426,1781367071000,-301.21838655,0.00028644,7]
[424979430,1781367071000,-393.59878194,0.00028644,7]
[424979429,1781367071000,-309.67393452,0.00028644,7]
[424979431,1781367071000,-213.27721033,0.00028644,7]
[424979418,1781367071000,-360.62142358,0.00028643,7]
[424979432,1781367071000,-307.89831311,0.00028644,7]
[424979468,1781367072000,-151.0,0.000289,7]
[424979471,1781367072000,-1197.66,0.000289,30]
[424979476,1781367072000,-173.3107,0.000289,7]
[424979478,1781367072000,-1669.82061,0.000289,7]
[424979470,1781367072000,-151.0,0.000289,7]
[424979475,1781367072000,-173.310699,0.000289,7]
[424979474,1781367072000,-173.310699,0.000289,7]
[424979472,1781367072000,-200.0,0.000289,2]
[424979477,1781367072000,-1669.82061,0.000289,7]
[424979479,1781367072000,-1669.82061,0.000289,7]
[424979481,1781367072000,-151.0,0.000289,7]
[424979469,1781367072000,-151.0,0.000289,7]
[424979473,1781367072000,-173.310699,0.000289,7]
[424979467,1781367072000,-513405.1949506,0.000289,2]
[424979457,1781367072000,-4335.0,0.00028727,10]
[424979465,1781367072000,-150.0,0.00028855,2]
[424979466,1781367072000,-693.0,0.000289,2]
[424979464,1781367072000,-150.0,0.00028855,2]
[424979458,1781367072000,-205.04995436,0.00028765,2]
[424979461,1781367072000,-160.0,0.00028799,2]
[424979462,1781367072000,-350.0,0.00028828,5]
[424979460,1781367072000,-300.0,0.00028798,10]
[424979459,1781367072000,-775.76,0.00028767,2]
[424979485,1781367072000,-515.819002,0.000289,7]
[424979456,1781367072000,-272.93901011,0.00028725,2]
[424979455,1781367072000,-301.14337869,0.00028725,2]
[424979453,1781367072000,-151.0,0.00028722,2]
[424979454,1781367072000,-804.17102365,0.00028722,2]
[424979463,1781367072000,-500.0,0.00028855,2]
[424979482,1781367072000,-515.819011,0.000289,7]
[424979506,1781367072000,-1048.56061,0.000289,7]
[424979486,1781367072000,-908.7,0.000289,7]
[424979488,1781367072000,-3793.229884,0.000289,7]
[424979514,1781367072000,-960.84198,0.000289,7]
[424979511,1781367072000,-309.508817,0.000289,7]
[424979503,1781367072000,-1048.560609,0.000289,7]
[424979510,1781367072000,-151.0,0.000289,7]
[424979513,1781367072000,-309.508817,0.000289,7]
[424979512,1781367072000,-151.0,0.000289,7]
[424979508,1781367072000,-151.0,0.000289,7]
[424979509,1781367072000,-309.508817,0.000289,7]
[424979507,1781367072000,-151.0,0.000289,7]
[424979504,1781367072000,-1048.560609,0.000289,7]
[424979502,1781367072000,-177.977151,0.000289,7]
[424979499,1781367072000,-2361.624067,0.000289,7]
[424979500,1781367072000,-177.977151,0.000289,7]
[424979505,1781367072000,-177.977148,0.000289,7]
[424979496,1781367072000,-2361.624063,0.000289,7]
[424979498,1781367072000,-177.977151,0.000289,7]
[424979483,1781367072000,-515.819011,0.000289,7]
[424979484,1781367072000,-515.819011,0.000289,7]
[424979487,1781367072000,-3793.229884,0.000289,7]
[424979480,1781367072000,-1669.820609,0.000289,7]
[424979491,1781367072000,-567.721526,0.000289,7]
[424979489,1781367072000,-3793.229884,0.000289,7]
[424979501,1781367072000,-1048.560609,0.000289,7]